bitfinex/quotes_ETHUSD_20251108
["timestamp","ask_amount","ask_price","bid_price","bid_amount"]
[1762639294526,9.35708914,3408.3,3408.2,1.1408]
[1762639294698,1.71947242,3408.3,3408.2,1.1408]
[1762639294899,1.53407242,3408.3,3408.2,1.1408]
[1762639295220,0.27436042,3408.3,3408.2,1.1408]
[1762639295420,2.93361274,3408.8,3408.3,0.4595]
[1762639295724,1.259712,3408.8,3408.7,0.4959]
[1762639296226,1.259712,3408.8,3408.7,0.9554]
[1762639296421,4.19329566,3408.8,3408.7,0.9554]
[1762639297322,4.65356448,3408.8,3408.7,0.9554]
[1762639297504,4.19329566,3408.8,3408.7,0.9554]
[1762639298929,4.19329566,3408.8,3408.7,0.4959]
[1762639299508,2.93375579,3408.6,3408.5,0.4595]
[1762639299820,8.89707049,3408.6,3408.5,0.4595]
[1762639300019,8.89707049,3408.6,3408.5,0.9554]
[1762639300422,8.98999728,3408.6,3408.5,0.9554]
[1762639300627,8.98999728,3408.6,3408.5,0.4959]
[1762639301022,2.93401402,3408.3,3408.2,0.6449]
[1762639301237,8.89732872,3408.3,3408.2,0.6449]
[1762639301416,8.89732872,3408.3,3408.2,1.1408]
[1762639301816,9.54222872,3408.3,3408.2,1.1408]
[1762639303222,4.19381211,3408.2,3408.1,0.006]
[1762639303543,4.1940704,3407.9,3407.8,0.001]
[1762639303730,4.19432873,3407.6,3407.5,0.001]
[1762639303933,4.19432873,3407.6,3407.1,0.005]
[1762639303934,2.93496125,3407.2,3407.1,0.005]
[1762639304250,8.06205631,3407.2,3407.1,0.4825]
[1762639304450,8.06205631,3407.2,3407.1,0.9548]
[1762639304651,8.94463898,3407.2,3407.1,0.9548]
[1762639305146,8.52114662,3407.2,3407.1,0.9548]
[1762639305357,8.94463898,3407.2,3407.1,1.1375]
[1762639305521,8.38386722,3407.2,3407.1,1.1375]
[1762639307252,9.64357922,3407.2,3407.1,1.1375]
[1762639307425,9.9168798,3407.2,3407.1,1.1375]
[1762639309349,9.9168798,3407.2,3407.1,0.66]
[1762639310459,9.53073845,3407.2,3407.1,0.66]
[1762639310778,9.99124929,3407.2,3407.1,0.4773]
[1762639311178,9.99102097,3407.2,3407.1,0.4773]
[1762639311376,14.48157736,3407.2,3407.1,0.4773]
[1762639312280,14.02106652,3407.2,3407.1,0.4773]
[1762639312979,9.53051013,3407.2,3407.1,0.4773]
[1762639313163,14.02106652,3407.2,3407.1,0.005]
[1762639315269,14.48158657,3407.2,3407.1,0.005]
[1762639315645,14.2316321,3407.2,3407.1,0.005]
[1762639315860,14.2316321,3407.2,3407.1,0.9548]
[1762639315861,9.74107571,3407.2,3407.1,0.9548]
[1762639316059,9.74107571,3407.2,3407.1,0.9558]
[1762639316548,9.74307571,3407.2,3407.1,0.9558]
[1762639316971,9.74308088,3407.2,3407.1,0.9558]
[1762639318988,9.74308088,3407.2,3407.1,0.4783]
[1762639319484,9.74308088,3407.2,3407.1,0.9558]
[1762639320286,9.74308088,3407.2,3407.1,1.1385]
[1762639320790,10.30340979,3407.2,3407.1,1.1385]
[1762639325592,10.02771596,3407.2,3407.1,1.1385]
[1762639326089,9.56719591,3407.2,3407.1,1.1385]
[1762639326672,9.56820102,3407.2,3407.1,1.1385]
[1762639329096,8.96131218,3407.2,3407.1,1.1385]
[1762639329269,13.45186857,3407.2,3407.1,0.006]
[1762639329465,13.54936857,3407.2,3407.1,0.006]
[1762639330399,9.38480454,3407.2,3407.1,0.006]
[1762639330599,9.38548303,3407.2,3407.1,0.006]
[1762639330801,9.08373849,3407.2,3407.1,0.006]
[1762639333409,4.1949317,3406.9,3406.8,0.4907]
[1762639333706,8.96024912,3406.9,3406.8,0.4907]
[1762639333886,8.96024912,3406.9,3406.8,0.9827]
[1762639335920,8.63490879,3406.9,3406.8,0.9827]
[1762639337015,1.53447303,3406.9,3406.8,0.9827]
[1762639337686,1.53447303,3406.9,3406.8,1.39432297]
[1762639338314,6.02502942,3406.9,3406.8,1.39432297]
[1762639338500,1.259712,3406.8,3406.7,0.001]
[1762639338705,4.46977888,3406.8,3406.7,0.001]
[1762639339017,4.56727888,3406.8,3406.7,0.001]
[1762639340790,4.87042872,3406.8,3406.7,0.001]
[1762639341022,4.87119054,3406.8,3406.7,0.001]
[1762639342026,4.77369054,3406.8,3406.7,0.493]
[1762639342325,4.77369054,3406.8,3406.7,0.9837]
[1762639342326,9.26424693,3406.8,3406.7,0.9837]
[1762639342521,6.32894108,3406.8,3406.7,0.9837]
[1762639342723,5.86837376,3406.8,3406.7,0.9837]
[1762639343195,5.86837376,3406.8,3406.7,1.37573377]
[1762639344801,5.86837376,3406.8,3406.7,0.9837]
[1762639345424,8.80367961,3406.8,3406.7,0.9837]
[1762639345917,5.60015422,3406.8,3406.7,0.9837]
[1762639349744,8.53546007,3406.8,3406.7,0.9837]
[1762639349916,8.53536937,3406.8,3406.7,0.9837]
[1762639350948,8.17469559,3406.8,3406.7,0.9837]
[1762639352246,7.70129439,3406.8,3406.7,0.9837]
[1762639352547,7.70329439,3406.8,3406.7,0.9837]
[1762639352919,8.96300639,3406.8,3406.7,0.9837]
[1762639353325,8.96301398,3406.8,3406.7,0.9837]
[1762639355927,8.62474009,3406.8,3406.7,0.9837]
[1762639356446,5.68943424,3406.8,3406.7,0.9837]
[1762639357753,8.62474009,3406.8,3406.7,0.9837]
[1762639360962,8.3370888,3406.8,3406.7,0.9837]
[1762639366059,8.02036962,3406.8,3406.7,0.9837]
[1762639368750,8.02036962,3406.8,3406.7,0.9337]
[1762639371133,8.02036962,3406.8,3406.6,0.001]
[1762639371134,4.03224739,3406.7,3406.6,0.001]
[1762639371341,4.16118713,3406.7,3406.6,0.001]
[1762639371747,4.16118713,3406.7,3406.6,0.4765]
[1762639372039,4.16118713,3406.7,3406.6,0.9307]
[1762639373065,0.27543974,3406.7,3406.6,0.9307]
[1762639373440,0.27543974,3406.7,3406.6,4.20301323]
[1762639374139,0.27543974,3406.7,3406.6,1.26753505]
[1762639376195,0.04245084,3406.7,3406.6,1.26753505]
[1762639381270,2.71693917,3406.9,3406.8,0.4755]
[1762639381472,1.259712,3406.9,3406.8,0.4755]
[1762639381778,1.259712,3406.9,3406.8,0.9371]
[1762639382170,2.9352197,3406.9,3406.8,0.9371]
[1762639383499,2.93517371,3407.0,3406.8,0.9371]
[1762639383695,4.19488571,3407.0,3406.9,0.9346]
[1762639384201,0.002,3407.2,3406.9,0.9346]
[1762639384381,0.002,3407.2,3406.4,0.001]
[1762639384382,0.002,3407.2,3407.1,0.657]
[1762639384796,0.002,3407.2,3407.1,1.1186]
[1762639385108,0.002,3407.2,3407.1,1.81749766]
[1762639386204,2.72345584,3407.6,3407.1,1.81749766]
[1762639386413,2.72345584,3407.6,3407.5,0.473]
[1762639386703,0.002,3407.9,3407.5,0.473]
[1762639387001,0.002,3407.9,3407.8,0.473]
[1762639387187,0.002,3407.9,3407.8,0.9346]
[1762639387384,0.002,3407.9,3407.8,1.32152304]
[1762639387769,0.002,3407.9,3407.8,0.9346]
[1762639388171,0.002,3407.9,3407.8,3.8690445]
[1762639390704,0.002,3407.9,3407.8,0.9346]
[1762639391375,4.02365102,3408.2,3407.8,0.9346]
[1762639391695,4.02365102,3408.2,3407.8,0.473]
[1762639391696,2.9341862,3408.1,3407.8,0.473]
[1762639391903,0.1955,3407.9,3407.2,0.4616]
[1762639392204,2.93456273,3407.7,3407.2,0.4616]
[1762639392373,4.71463252,3407.7,3407.2,0.90799819]
[1762639392701,4.71463252,3407.7,3407.2,0.4616]
[1762639392899,4.71463252,3407.7,3407.3,0.4616]
[1762639393400,0.27424099,3407.6,3407.3,0.4616]
[1762639393581,0.27424099,3407.5,3407.3,0.4616]
[1762639393777,0.27424099,3407.4,3407.3,0.4616]
[1762639394171,0.27424099,3407.4,3407.3,0.9346]
[1762639394913,0.27424099,3407.4,3407.1,0.185]
[1762639395071,0.27424099,3407.3,3407.2,0.4616]
[1762639395469,0.27424099,3407.3,3407.2,0.9346]
[1762639396284,0.13018427,3407.3,3407.2,0.9346]
[1762639397529,0.13018427,3407.3,3407.2,3.86956125]
[1762639397707,0.13018427,3407.3,3407.2,0.9346]
[1762639397876,0.13018427,3407.3,3407.2,1.69875215]
[1762639398282,0.13018427,3407.3,3407.2,4.6337134]
[1762639401410,1.10168381,3407.8,3407.3,2.93484895]
[1762639401620,0.1015,3407.9,3407.4,2.93477989]
[1762639402122,0.1015,3407.9,3407.5,0.4616]
[1762639402805,4.71663252,3408.3,3407.8,0.473]
[1762639403023,4.71663252,3408.3,3407.5,1.17114896]
[1762639403024,2.9341862,3408.1,3407.5,0.4616]
[1762639403209,2.93429118,3408.0,3407.5,0.4616]
[1762639403606,1.361212,3407.9,3407.1,0.185]
[1762639403808,7.64917478,3407.7,3407.1,3.58159966]
[1762639403989,7.64917478,3407.7,3407.2,0.65168033]
[1762639404402,4.71463252,3407.7,3407.2,0.65168033]
[1762639404607,4.71463252,3407.7,3407.1,0.6466]
[1762639404608,7.84474156,3407.7,3407.1,0.6466]
[1762639404820,0.42349236,3407.6,3407.1,0.6466]
[1762639405416,4.71463252,3407.4,3407.1,0.001]
[1762639405766,0.1955,3407.2,3407.1,0.001]
[1762639406109,0.1955,3407.2,3406.6,2.89900658]
[1762639406309,0.1955,3407.2,3406.6,3.57090551]
[1762639406644,3.28818792,3407.3,3406.6,0.67189893]
[1762639407032,3.28818792,3407.3,3406.6,3.60731372]
[1762639407442,0.3532967,3407.3,3406.6,0.67189893]
[1762639407743,0.3532967,3407.3,3406.4,0.001]
[1762639407942,2.93499869,3407.2,3406.5,2.93556436]
[1762639408138,4.71463252,3407.1,3406.5,3.39716436]
[1762639408838,4.71463252,3407.1,3406.8,0.001]
[1762639409026,3.3968197,3406.9,3406.8,0.001]
[1762639410610,0.4616,3406.9,3406.8,0.001]
[1762639411307,1.259712,3407.2,3406.8,0.4526]
[1762639411542,1.00321038,3407.2,3406.8,0.9142]
[1762639412555,1.00321038,3407.2,3406.8,0.4526]
[1762639412853,1.00321038,3407.2,3406.9,0.4616]
[1762639413437,0.27470666,3407.1,3406.9,0.4616]
[1762639413758,0.27470666,3407.0,3406.9,0.4616]
[1762639414126,0.27470666,3407.0,3406.9,0.9132]
[1762639414756,0.27470666,3407.0,3406.9,0.4516]
[1762639415051,0.27470666,3407.0,3406.9,0.40665906]
[1762639415861,0.27470666,3407.0,3406.9,0.85825906]
[1762639416639,0.04935478,3407.0,3406.9,0.85825906]
[1762639417631,0.04935478,3407.0,3406.9,1.31985906]
[1762639417855,0.04935478,3407.0,3406.9,4.25507876]
[1762639418078,0.04935478,3407.0,3406.9,1.31985906]
[1762639419274,0.04935478,3407.0,3406.9,0.85825906]
[1762639419495,0.04935478,3407.0,3406.9,1.31985906]
[1762639421590,0.80273946,3407.2,3406.9,1.31985906]
[1762639426600,0.49993036,3407.2,3406.9,1.32085906]
[1762639426898,2.93496597,3407.2,3406.9,1.32085906]
[1762639427410,2.93696597,3407.2,3406.9,1.32085906]
[1762639427608,2.93696597,3407.2,3406.9,0.85925906]
[1762639427812,2.93696597,3407.2,3406.9,0.4526]
[1762639428489,2.93696597,3407.2,3406.9,0.9123]
[1762639428673,1.259712,3407.1,3406.9,0.9123]
[1762639430003,1.259712,3407.1,3407.0,0.4757]
[1762639430202,1.261712,3407.2,3407.0,0.4757]
[1762639430512,1.261712,3407.2,3407.1,0.9354]
[1762639430803,4.19667402,3407.2,3406.9,0.4607]
[1762639431017,1.261712,3407.2,3406.9,0.001]
[1762639431205,1.261712,3407.2,3407.1,0.4757]
[1762639431704,1.01014592,3407.2,3407.1,0.4757]
[1762639432007,1.01014592,3407.2,3407.1,0.9354]
[1762639432379,5.49899832,3407.2,3407.1,0.9354]
[1762639432779,5.49899832,3407.2,3407.1,1.3226704]
[1762639433000,5.49899832,3407.2,3407.1,0.9354]
[1762639433610,5.77430338,3407.2,3407.1,0.9354]
[1762639434279,5.77430338,3407.2,3407.1,1.1273]
[1762639436706,5.60809538,3407.2,3407.1,1.1273]
[1762639437885,0.27530506,3407.2,3407.1,0.4757]
[1762639438087,0.27530506,3407.2,3407.1,1.1273]
[1762639438381,0.27530506,3407.2,3407.1,1.82727173]
[1762639438985,0.27530506,3407.2,3407.1,4.76231913]
[1762639439586,0.27530506,3407.2,3407.1,1.82727173]
[1762639440314,0.27530506,3407.2,3407.1,4.76231913]
[1762639441786,1.259712,3407.4,3407.1,4.76231913]
[1762639441787,1.16083468,3407.4,3407.3,2.93487512]
[1762639442013,0.002,3407.6,3407.5,2.93470286]
[1762639442315,0.002,3407.6,3407.5,3.92314988]
[1762639443110,0.002,3407.6,3407.5,3.89380286]
[1762639447043,0.9422684,3408.2,3407.7,2.93453062]
[1762639447243,0.9422684,3408.2,3407.7,3.43083062]
[1762639447417,0.9422684,3408.2,3407.8,1.14563335]
[1762639447823,0.9422684,3408.2,3407.8,3.61726021]
[1762639448023,0.002,3408.1,3407.9,0.4628]
[1762639448521,0.002,3408.1,3408.0,0.4963]
[1762639449841,0.002,3408.1,3407.8,0.68283335]
[1762639450041,0.002,3408.1,3407.8,0.4628]
[1762639450935,0.002,3408.1,3408.0,0.4741]
[1762639451452,0.002,3408.1,3408.0,0.967]
[1762639451617,0.002,3408.1,3408.0,3.9012723]
[1762639451945,5.53458279,3408.4,3408.3,0.4741]
[1762639452123,8.46856026,3408.4,3407.7,2.93452855]
[1762639452328,8.93016026,3408.4,3407.8,0.29345286]
[1762639452919,8.93016026,3408.4,3407.8,3.22788277]
[1762639453320,8.93016026,3408.4,3407.8,3.72078277]
[1762639454052,0.27445046,3408.3,3407.8,3.72078277]
[1762639454220,0.27445046,3408.2,3407.8,3.22788277]
[1762639454422,0.27445046,3408.1,3407.9,1.10914972]
[1762639454634,0.27445046,3408.0,3407.9,1.10914972]
[1762639455019,0.27445046,3408.0,3407.9,1.58324972]
[1762639455231,0.27443094,3408.0,3407.9,1.58324972]
[1762639456133,0.27443094,3408.0,3407.9,0.967]
[1762639457057,0.02366199,3408.0,3407.9,0.967]
[1762639461984,4.30694416,3408.1,3408.0,0.4741]
[1762639462682,4.30694416,3408.1,3408.0,0.967]
[1762639463690,4.30694416,3408.1,3408.0,3.9012723]
[1762639463896,1.259712,3408.3,3408.0,1.67991577]
[1762639464061,1.259712,3408.3,3408.2,0.4741]
[1762639464255,0.002,3408.5,3408.2,0.503441]
[1762639464491,0.002,3408.5,3408.4,0.4741]
[1762639464987,0.002,3408.5,3408.4,0.967]
[1762639467095,1.259712,3408.7,3408.4,0.967]
[1762639467096,1.00262153,3408.7,3408.4,0.967]
[1762639467815,1.00262153,3408.7,3408.4,0.4741]
[1762639468118,1.00262153,3408.7,3408.5,0.4929]
[1762639469195,3.9363722,3408.7,3408.2,0.4929]
[1762639469992,3.9363722,3408.7,3407.9,2.93535767]
[1762639469993,0.0875,3408.3,3407.9,2.93535385]
[1762639470160,0.0046,3408.2,3407.9,0.001]
[1762639470698,0.0046,3408.2,3407.9,0.4939]
[1762639470992,0.0046,3408.2,3407.9,0.001]
[1762639472318,3.14537211,3408.3,3407.9,0.001]
[1762639472708,4.4888524,3408.2,3407.9,0.001]
[1762639474131,0.27511427,3408.1,3407.9,0.001]
[1762639474445,0.27511427,3408.0,3407.9,0.001]
[1762639474586,0.69275699,3408.0,3407.9,0.001]
[1762639474926,4.08402929,3408.0,3407.9,0.001]
[1762639475081,6.07680397,3408.0,3407.9,0.001]
[1762639475282,10.56565637,3408.0,3407.9,0.001]
[1762639475517,10.98329909,3408.0,3407.9,0.001]
[1762639476610,11.37923093,3408.0,3407.9,0.001]
[1762639477125,10.84108711,3408.0,3407.9,0.001]
[1762639478830,11.23701895,3408.0,3407.9,0.001]
[1762639479385,11.23701895,3408.0,3407.5,0.001]
[1762639479386,2.93461673,3407.6,3407.5,0.001]
[1762639479614,14.02586537,3407.6,3407.5,0.001]
[1762639479814,14.44350809,3407.6,3407.5,0.001]
[1762639481023,9.95465569,3407.6,3407.5,0.001]
[1762639482212,9.74382497,3407.6,3407.5,0.001]
[1762639482425,10.89453037,3407.6,3407.5,0.001]
[1762639484216,10.47688765,3407.6,3407.5,0.001]
[1762639484416,8.93025041,3407.6,3407.5,0.001]
[1762639487209,8.57260057,3407.6,3407.5,0.001]
[1762639488011,9.38617513,3407.6,3407.5,0.001]
[1762639488206,9.38617513,3407.6,3407.2,0.001]
[1762639488416,8.68343952,3407.3,3407.2,0.001]
[1762639488821,9.14043952,3407.3,3407.2,0.001]
[1762639489215,9.41443781,3407.3,3407.2,0.001]
[1762639489740,14.71686477,3407.3,3407.2,0.001]
[1762639491665,9.81036965,3407.3,3407.2,0.001]
[1762639492218,9.60891749,3407.3,3407.2,0.001]
[1762639492426,9.834962,3407.3,3407.2,0.001]
[1762639493665,8.98203016,3407.3,3407.2,0.4943]
[1762639493955,8.98203016,3407.3,3407.2,0.001]
[1762639495237,8.98183097,3407.3,3407.2,0.001]
[1762639496443,8.98183097,3407.3,3407.2,0.4943]
[1762639497452,8.81811346,3407.3,3407.2,0.4943]
[1762639497653,6.24840801,3407.3,3407.2,0.4943]
[1762639497823,1.5335111,3407.3,3407.2,0.948]
[1762639498220,1.5335111,3407.3,3407.2,1.35487082]
[1762639499768,4.46838622,3407.3,3407.2,0.948]
[1762639499979,1.5335111,3407.3,3407.2,0.948]
[1762639500658,1.5355111,3407.3,3407.2,0.948]
[1762639502281,4.47038622,3407.3,3407.2,0.948]
[1762639502481,4.32977102,3407.3,3407.2,0.948]
[1762639502707,0.2757991,3407.3,3407.2,0.948]
[1762639503000,3.21067422,3407.3,3407.2,0.948]
[1762639503295,0.2757991,3407.3,3407.2,0.948]
[1762639504400,1.5355111,3407.3,3407.2,0.948]
[1762639504899,0.2757991,3407.3,3407.2,0.99584961]
[1762639505061,0.2757991,3407.3,3407.2,1.40749277]
[1762639505794,0.2757991,3407.3,3407.2,1.37814316]
[1762639507498,0.08260313,3407.3,3407.2,1.37814316]
[1762639508670,0.08260313,3407.3,3407.2,4.31310441]
[1762639508870,0.08260313,3407.3,3407.2,4.34245402]
[1762639511166,0.08260313,3407.3,3407.2,4.31310441]
[1762639511996,0.08260313,3407.3,3407.2,1.37814316]
[1762639512181,0.08260313,3407.3,3407.2,0.9665]
[1762639512586,2.93463341,3407.6,3407.4,0.474]
[1762639513978,2.93463341,3407.6,3407.4,0.9495]
[1762639515098,4.71489691,3407.6,3407.2,0.001]
[1762639515299,7.64977203,3407.3,3407.2,0.001]
[1762639515613,8.90948403,3407.3,3407.2,0.001]
[1762639517511,8.60566109,3407.3,3407.2,0.001]
[1762639518095,5.97460891,3407.3,3407.2,0.001]
[1762639518296,1.259712,3407.3,3407.2,0.9565]
[1762639518781,1.259712,3407.3,3407.2,0.481]
[1762639518983,1.259712,3407.3,3407.2,0.001]
[1762639518984,4.65158712,3407.3,3407.2,0.001]
[1762639519299,9.36648403,3407.3,3407.2,0.001]
[1762639519613,9.36848403,3407.3,3407.2,0.001]
[1762639522222,9.46048403,3407.3,3407.2,0.001]
[1762639522586,9.12421507,3407.3,3407.2,0.001]
[1762639524104,9.52014691,3407.3,3407.2,0.001]
[1762639524512,9.7952788,3407.3,3407.2,0.001]
[1762639525111,11.36175629,3407.3,3407.2,0.001]
[1762639527729,11.11008743,3407.3,3407.2,0.001]
[1762639529405,9.45160994,3407.3,3407.2,0.001]
[1762639529604,9.0556781,3407.3,3407.2,0.001]
[1762639532603,8.74865295,3407.3,3407.2,0.001]
[1762639536256,7.92690392,3407.3,3407.2,0.4792]
[1762639536457,9.18661592,3407.3,3407.2,0.9616]
[1762639536823,9.18661592,3407.3,3407.2,0.4792]
[1762639537719,8.83903434,3407.3,3407.2,0.4792]
[1762639537925,9.29603434,3407.3,3407.2,0.001]
[1762639538360,9.69196618,3407.3,3407.2,0.001]
[1762639538881,11.76695526,3407.3,3407.2,0.001]
[1762639542854,11.47499983,3407.3,3407.2,0.001]
[1762639545163,10.96535711,3407.3,3407.2,0.001]
[1762639546566,11.05735711,3407.3,3407.2,0.001]
[1762639547231,11.517881,3407.3,3407.2,0.001]
[1762639547433,11.425881,3407.3,3407.2,0.001]
[1762639547866,9.22254289,3407.3,3407.2,0.001]
[1762639548232,12.06541801,3407.3,3407.2,0.001]
[1762639549880,11.60841801,3407.3,3407.2,0.001]
[1762639550076,10.13507165,3407.3,3407.2,0.001]
[1762639552881,9.81968365,3407.3,3407.2,0.001]
[1762639554374,9.91041381,3407.3,3407.2,0.001]
[1762639557271,9.44988992,3407.3,3407.2,0.001]
[1762639557477,9.90328992,3407.3,3407.2,0.001]
[1762639557985,9.31781717,3407.3,3407.2,0.001]
[1762639560600,9.77121717,3407.3,3407.2,0.001]
[1762639560901,11.33528851,3407.3,3407.2,0.001]
[1762639561403,4.19467325,3407.2,3406.9,0.001]
[1762639561568,13.63232368,3407.0,3406.9,0.001]
[1762639561770,14.44589824,3407.0,3406.9,0.001]
[1762639561978,14.53789824,3407.0,3406.9,0.001]
[1762639562226,15.02724305,3407.0,3406.9,0.001]
[1762639563002,14.81314478,3407.0,3406.9,0.001]
[1762639566596,4.1949317,3406.9,3406.8,0.001]
[1762639566834,5.25230626,3406.9,3406.8,0.001]
[1762639567036,6.8163776,3406.9,3406.8,0.001]
[1762639567247,4.19501785,3406.8,3406.7,0.001]
[1762639567402,5.09846057,3406.8,3406.7,0.001]
[1762639567736,5.49439241,3406.8,3406.7,0.001]
[1762639568084,5.19590434,3406.8,3406.7,0.001]
[1762639568423,5.68524915,3406.8,3406.7,0.001]
[1762639568914,5.02470643,3406.8,3406.7,0.001]
[1762639569484,5.26760643,3406.8,3406.7,0.001]
[1762639570121,5.54280087,3406.8,3406.7,0.001]
[1762639571800,5.29990087,3406.8,3406.7,0.001]
[1762639572416,4.81055606,3406.8,3406.7,0.001]
[1762639573108,4.62622225,3406.8,3406.7,0.001]
[1762639573490,4.38332225,3406.8,3406.7,0.9622]
[1762639573988,3.98739041,3406.8,3406.7,0.9622]
[1762639575084,3.98739041,3406.8,3406.7,0.5006]
[1762639575513,4.62622225,3406.8,3406.7,0.001]
[1762639575709,6.34666853,3406.8,3406.7,0.001]
[1762639575912,6.76431125,3406.8,3406.7,0.001]
[1762639576108,7.00721125,3406.8,3406.7,0.001]
[1762639576326,2.9359091,3406.1,3405.3,0.1847]
[1762639576499,4.19605214,3405.6,3405.5,0.4532]
[1762639576690,8.96148565,3405.6,3405.5,0.4532]
[1762639576893,8.96148565,3405.6,3405.5,0.9452]
[1762639577505,9.37912837,3405.6,3405.5,0.492]
[1762639577705,2.93668506,3405.2,3405.0,0.1925]
[1762639577919,8.09805041,3405.2,3405.0,0.1925]
[1762639578154,8.3088907,3405.2,3405.1,0.497]
[1762639578437,14.05884177,3405.2,3405.1,0.497]
[1762639578602,13.24526721,3405.2,3405.1,0.497]
[1762639578807,13.66290993,3405.2,3405.1,0.497]
[1762639579008,13.66290993,3405.2,3405.1,0.005]
[1762639579507,13.24526721,3405.2,3405.1,0.005]
[1762639579902,13.66290993,3405.2,3405.1,0.005]
[1762639582618,2.9372026,3404.6,3404.5,0.1847]
[1762639582942,2.9372026,3404.6,3404.5,1.1299]
[1762639582943,8.96234811,3404.6,3404.5,1.1299]
[1762639583315,8.64160733,3404.6,3404.5,1.1299]
[1762639584619,9.05925005,3404.6,3404.5,1.1299]
[1762639584854,8.64160733,3404.6,3404.5,1.1299]
[1762639585955,2.93743248,3404.4,3404.2,0.1847]
[1762639586148,4.76543351,3404.3,3404.2,0.1847]
[1762639586623,4.76543351,3404.3,3404.2,0.6767]
[1762639586951,4.76543351,3404.3,3404.2,1.1299]
[1762639588326,4.62572879,3404.3,3404.2,1.1299]
[1762639589453,0.27519444,3404.3,3404.2,4.06744773]
[1762639589627,1.259712,3404.7,3404.2,1.8492802]
[1762639589822,1.259712,3404.4,3404.2,1.1299]
[1762639590026,0.27519444,3404.3,3404.2,0.1847]
[1762639590525,0.27519444,3404.3,3404.2,1.1299]
[1762639593249,0.06109713,3404.3,3404.2,1.1299]
[1762639593566,0.06109713,3404.3,3404.2,1.55553038]
[1762639594267,1.259712,3404.4,3404.2,1.55553038]
[1762639594430,1.259712,3404.4,3404.3,0.946]
[1762639598457,0.98736626,3404.4,3404.3,0.946]
[1762639602081,1.259712,3404.2,3404.1,0.006]
[1762639602280,5.74995107,3404.2,3404.1,0.4973]
[1762639602579,5.74995107,3404.2,3404.1,0.952]
[1762639603347,5.62018997,3404.2,3404.1,1.35934206]
[1762639603543,8.5577377,3404.2,3404.1,0.86804206]
[1762639603848,5.62018997,3404.2,3404.1,0.952]
[1762639605285,5.89487932,3404.2,3404.1,0.952]
[1762639608680,8.48814649,3404.2,3404.1,0.952]
[1762639609382,5.55059876,3404.2,3404.1,0.952]
[1762639610388,5.55059876,3404.2,3404.1,1.35935557]
[1762639613506,5.33157792,3404.2,3404.1,1.35935557]
[1762639615406,5.33157792,3404.2,3404.1,0.952]
[1762639615600,1.53440135,3404.2,3404.1,0.952]
[1762639616303,1.53440135,3404.2,3404.1,3.88963402]
[1762639616600,0.27468935,3404.2,3404.1,3.88963402]
[1762639618070,0.27468935,3404.2,3404.1,4.29513802]
[1762639618273,0.27468935,3404.2,3404.1,5.6052559]
[1762639618578,1.18670631,3405.2,3405.1,0.6781]
[1762639618999,1.18670631,3405.2,3405.1,1.1525]
[1762639619188,2.93649533,3405.5,3405.1,1.1525]
[1762639619189,2.93653976,3405.4,3405.1,1.1525]
[1762639619519,2.93653976,3405.4,3405.2,0.9557]
[1762639619716,2.93653976,3405.4,3405.3,0.4813]
[1762639620294,7.65814127,3405.6,3405.3,0.9557]
[1762639620295,2.93643859,3405.5,3405.3,0.9557]
[1762639620511,2.93651259,3405.4,3405.1,0.1968]
[1762639620709,4.19615008,3405.5,3405.4,0.9557]
[1762639621423,2.93701117,3404.9,3403.6,0.405504]
[1762639621720,1.259712,3404.9,3404.5,0.4956]
[1762639622025,1.259712,3404.9,3404.8,0.4828]
[1762639622230,2.93694381,3404.9,3404.8,0.4828]
[1762639623628,2.58966669,3404.9,3404.8,0.4828]
[1762639626027,2.83356669,3404.9,3404.1,1.265712]
[1762639626196,2.83356669,3404.9,3404.2,0.43860797]
[1762639626631,2.83356669,3404.9,3404.2,0.93420797]
[1762639626827,4.71978262,3404.8,3404.2,0.93420797]
[1762639627128,7.6568794,3404.8,3404.3,0.4956]
[1762639627331,2.93713954,3404.7,3404.3,0.4956]
[1762639627528,0.002,3404.9,3404.7,0.4828]
[1762639627730,0.002,3404.9,3404.8,0.4828]
[1762639628708,4.44131353,3405.1,3404.8,0.9784]
[1762639628924,7.37809771,3405.1,3404.8,0.9784]
[1762639630600,0.27474775,3405.0,3404.8,0.9784]
[1762639630921,0.27474775,3404.9,3404.8,0.9784]
[1762639631532,0.27474775,3404.9,3404.8,0.39450609]
[1762639631734,0.27474775,3404.9,3404.8,0.4963]
[1762639632230,0.27474775,3404.9,3404.8,0.9706]
[1762639633435,0.27474775,3404.9,3404.8,0.9999703]
[1762639633804,4.1298404,3405.3,3405.2,0.4963]
[1762639635220,4.1298404,3405.3,3405.0,0.4743]
[1762639635744,1.259712,3405.0,3404.7,0.4743]
[1762639636114,1.259712,3405.0,3404.9,0.4963]
[1762639636714,1.259712,3405.0,3404.9,0.9706]
[1762639637136,1.259712,3405.0,3404.9,1.65507505]
[1762639638210,1.259712,3405.4,3404.9,4.59201886]
[1762639638414,1.259712,3405.4,3405.0,0.9706]
[1762639638609,1.259712,3405.4,3405.3,0.4963]
[1762639638610,2.93651259,3405.4,3405.3,0.4963]
[1762639638848,2.63197121,3405.4,3405.3,0.4963]
[1762639639242,1.259712,3405.3,3405.1,0.4743]
[1762639639625,1.259712,3405.3,3405.2,0.4963]
[1762639640349,1.259712,3405.3,3405.2,0.9706]
[1762639641045,1.259712,3405.4,3405.2,1.44946184]
[1762639641267,4.19805929,3405.6,3405.3,0.9706]
[1762639641557,1.259712,3405.4,3405.3,0.9706]
[1762639642477,1.259712,3405.4,3404.9,0.68447505]
[1762639642478,4.96168262,3405.4,3404.9,0.68447505]
[1762639642645,2.9366156,3405.3,3404.5,2.93728329]
[1762639642961,2.9366156,3405.3,3404.9,0.4743]
[1762639643166,4.96168262,3405.4,3404.9,0.4743]
[1762639643167,7.65633384,3405.4,3404.9,0.4743]
[1762639643857,7.38221915,3405.4,3404.9,0.4743]
[1762639644922,8.64193115,3405.4,3405.3,0.001]
[1762639645456,5.94727993,3405.4,3405.3,0.001]